Cogmind - Beta 16 @@@ ROGUE MODE // 2025.11.14 @ 17:55:17 Player: MolePlayingNice Result: Self-destructed Performance ------------- Evolutions (6) 3000 Regions Visited (24) 4800 Robots Destroyed (416) 2080 Value Destroyed (18451) 18451 Prototype IDs (64) 1280 Alien Tech Used (0) 0 Bonus (10145) 10145 TOTAL SCORE: 39756 Bonus ------- High Alert Combat Kills 4182 Follower Combat Kills 2408 Entered Garrisons 200 Entered DSFs 500 Network Hubs Disabled 400 Aligned with FarCom 300 Acquired ECA 300 MAIN.C Attacked Warlord 500 Warlord Defense Kills 848 Built Enhanced Grunts 300 Met R17 at Cetus 500 Friendly Fire -293 Cogmind --------- Core Integrity 823/1150 Matter 115/300 Energy 94/100 System Corruption 1% Temperature Warm (186) Movement Immobile (Siege) Ox1 Location -4/Factory Parts ------- > --- POWER (2) -------- (None) > --- PROPULSION (5) --- Heavy Treads > --- UTILITY (7) ------ Experimental Heat Sink Huge Storage Unit Experimental Optical Array Experimental Phase Shifter Improved Medium Armor Plating Thermal Barrier Improved Force Field > --- WEAPON (5) ------- (None) > --- INVENTORY (25) --- Light Antimatter Reactor Heavy Treads Centrium Wheel Centrium Wheel Long-range Sensor Array Quantum Capacitor Improved Transmission Jammer Centrium Medium Armor Plating Experimental EM Shield Improved Force Field Improved Force Field Chronowheel Advanced Plasma Cannon Vortex Driver (26) KE Penetrator Improved KE Penetrator Railgun 8R-AWN's Boregun Peak State ------------ > --- POWER ------------ Vortex Chain Reactor > --- PROPULSION ------- Heavy Treads Centrium Wheel Centrium Wheel > --- UTILITY ---------- Experimental Heat Sink Advanced Cooling System Experimental Optical Array Experimental Core Analyzer Experimental Phase Shifter Centrium Medium Armor Plating Thermal Barrier > --- WEAPON ----------- Plasma Storm > --- INVENTORY -------- Experimental EM Shield Chronowheel Vortex Driver 8R-AWN's Boregun [Rating: 150] Favorites ----------- Power Cold Fusion Reactor Engine Heavy Ion Engine Power Core Light Nuclear Core Reactor Cold Fusion Reactor Propulsion Light Treads Treads Light Treads Leg Aluminum Leg Wheel Centrium Wheel Hover Unit Backup Propulsion III Utility Huge Storage Unit Device Experimental Heat Sink Storage Huge Storage Unit Processor Experimental Targeting Computer Hackware Improved Hacking Suite Protection Centrium Medium Armor Plating Weapon Enhanced Autogun Energy Gun Heavy Laser Energy Cannon Nova Cannon Ballistic Gun Enhanced Autogun Ballistic Cannon Light Cannon Launcher Rocket Launcher Impact Weapon Thunder Hammer Slashing Weapon Katana Build | -11 -10 -10 -9 -9 -9 -8 -8 -8 -7 -7 -6 -6 -6 -6 -6 -6 -5 -5 -5 -5 -5 -5 -4 -4 ------- Run | Yrd Mat Min Mat Min Exi Min Mat Sto Fac DSF Fac Ext Cet Arc Hub Gar Fac Was Fac Upp Upp War Pro Fac Slots Evolved 12 | . . . 2 . . . 2 . 2 . 2 . . . . . 2 . . . . . . 2 Power 1 | . . . . . . . . . . . . . . . . . 1 . . . . . . . Propulsion 3 | . . . . . . . 1 . 1 . . . . . . . . . . . . . . 1 Utility 5 | . . . 1 . . . 1 . 1 . 1 . . . . . . . . . . . . 1 Weapon 3 | . . . 1 . . . . . . . 1 . . . . . 1 . . . . . . . Parts Attached 234 | 1 3 10 27 . 19 2 13 8 3 3 7 13 15 1 12 5 3 2 35 5 4 19 4 20 Power 20 | . 1 2 4 . 2 . . . . 1 1 . 3 . . 1 . 1 3 . . 1 . . Engine 9 | . 1 1 4 . 1 . . . . 1 1 . . . . . . . . . . . . . Core 1 | . . 1 . . . . . . . . . . . . . . . . . . . . . . Reactor 10 | . . . . . 1 . . . . . . . 3 . . 1 . 1 3 . . 1 . . Propulsion 52 | . . 3 6 . 5 . 4 1 1 1 1 5 2 . 2 2 1 1 2 1 3 5 2 4 Treads 36 | . . . 5 . 3 . 4 1 1 1 1 5 2 . 2 2 1 1 2 . 1 1 . 3 Leg 8 | . . 3 1 . 1 . . . . . . . . . . . . . . . 1 2 . . Wheel 5 | . . . . . 1 . . . . . . . . . . . . . . . 1 . 2 1 Hover 3 | . . . . . . . . . . . . . . . . . . . . 1 . 2 . . Flight . | . . . . . . . . . . . . . . . . . . . . . . . . . Utility 92 | . 2 . 9 . 6 1 4 3 2 1 3 6 4 1 7 . . . 20 3 1 9 2 8 Device 40 | . 1 . 3 . 3 1 2 1 . . 1 . . 1 2 . . . 10 2 . 6 2 5 Storage 6 | . 1 . 1 . . . . . . 1 1 . 1 . . . . . . . . . . 1 Processor 13 | . . . 2 . 1 . 1 1 . . . 1 . . 1 . . . 1 1 1 3 . . Hackware 6 | . . . . . . . . . . . . . . . 3 . . . 3 . . . . . Protection 27 | . . . 3 . 2 . 1 1 2 . 1 5 3 . 1 . . . 6 . . . . 2 Artifact . | . . . . . . . . . . . . . . . . . . . . . . . . . Weapon 70 | 1 . 5 8 . 6 1 5 4 . . 2 2 6 . 3 2 2 . 10 1 . 4 . 8 Energy Gun 15 | . . 3 1 . . . 2 . . . . . 1 . . . . . 5 . . 3 . . Energy Cannon 7 | . . . . . . . . . . . . . . . 3 1 . . 1 . . 1 . 1 Ballistic Gun 38 | 1 . . 5 . 5 1 1 3 . . 2 2 5 . . 1 2 . 4 . . . . 6 Ballistic Cannon 1 | . . . 1 . . . . . . . . . . . . . . . . . . . . . Launcher 6 | . . 2 1 . 1 . 1 1 . . . . . . . . . . . . . . . . Special Weapon . | . . . . . . . . . . . . . . . . . . . . . . . . . Impact Weapon 1 | . . . . . . . . . . . . . . . . . . . . . . . . 1 Slashing Weapon 2 | . . . . . . . 1 . . . . . . . . . . . . 1 . . . . Piercing Weapon . | . . . . . . . . . . . . . . . . . . . . . . . . . Special Melee Weapon . | . . . . . . . . . . . . . . . . . . . . . . . . . Unidentified Prototypes 34 | . . . 3 . 5 . 3 2 . . . . 5 . 3 . . . 1 . . 10 . 2 Parts Lost 45 | . . 3 5 . 2 . 1 . . . . . . . . 1 1 . 23 1 2 . . 6 Power 6 | . . 1 2 . . . 1 . . . . . . . . . . . 1 . . . . 1 Propulsion 7 | . . 1 . . 1 . . . . . . . . . . . . . 2 1 . . . 2 Utility 14 | . . . . . 1 . . . . . . . . . . . . . 10 . 1 . . 2 Weapon 18 | . . 1 3 . . . . . . . . . . . . 1 1 . 10 . 1 . . 1 Highest Loss Streak 11 | . . 2 3 . 2 . 1 . . . . . . . . 1 1 . 11 1 1 . . 3 To Critical Strikes 2 | . . . . . 1 . . . . . . . . . . . . . . . . . . 1 Average Backups 18 | 6 7 11 20 24 12 21 20 21 20 21 22 22 22 22 22 23 23 24 23 4 4 4 5 14 Power . | 1 1 . 1 1 . 1 . . . 1 1 1 1 1 1 1 1 2 1 . . . . . Propulsion 2 | 4 3 4 4 5 2 3 2 2 2 2 2 2 2 2 2 1 1 1 1 . . . . 1 Utility 7 | . . 2 6 7 2 7 8 8 7 6 7 7 8 10 11 11 12 13 11 2 1 1 2 7 Weapon 7 | 1 3 4 7 10 5 9 8 9 10 10 11 10 8 7 7 7 7 7 7 1 . 1 2 4 Tool/Special . | . . . . . . . . . . . . . . . . . . . . . . . . . Unused Backups 62 | . 4 5 5 2 7 1 3 1 . . 5 3 1 4 3 2 2 . 6 1 1 1 . 5 Power 11 | . 2 . . . 3 . . . . . 1 . . 1 . . . . 2 . 1 . . 1 Propulsion 9 | . . 2 3 . . . . . . . . . . 2 1 1 . . . . . . . . Utility 25 | . 2 3 . 1 3 . 3 . . . 2 1 . . 1 . 2 . 3 1 . . . 3 Weapon 16 | . . . 2 1 1 1 . 1 . . 2 2 1 1 1 1 . . 1 . . 1 . . Tool/Special 1 | . . . . . . . . . . . . . . . . . . . . . . . . 1 Average Slot Usage (%) 86 | . 94 99 95 88 97 100 99 100 97 100 99 100 94 93 92 89 82 82 80 38 30 62 63 60 Engine 3 | . 14 7 10 11 8 11 5 . . 5 4 . . . . . . . . . . 6 . . Reactor 3 | . . . . . 2 . 3 9 7 1 1 6 6 6 6 6 5 5 5 . . 1 5 5 Treads 16 | . . . 20 22 18 11 26 27 27 30 26 26 21 20 20 16 11 11 10 7 1 1 5 8 Leg 1 | . 28 28 1 . . . . . . . . . . . . . . . . . 1 5 6 . Device 8 | . 8 14 3 10 4 11 15 8 7 7 13 6 6 7 3 6 5 5 11 5 3 4 20 15 Storage 6 | . 14 14 11 11 5 11 9 9 7 7 6 6 6 6 6 6 5 5 4 . . . . 4 Processor 8 | . . . 6 . 5 . 8 13 15 7 6 6 13 13 13 13 11 11 7 14 18 21 11 7 Protection 8 | . . . 10 . 15 11 2 4 7 15 13 19 12 11 11 13 11 11 6 . . 3 2 5 Energy Gun 2 | . . 8 4 . . . . . . . . . . . . . . . 7 . . 6 5 2 Ballistic Gun 21 | . 28 18 24 33 30 33 26 26 23 23 24 25 26 26 24 24 28 28 16 . . . . 2 Peak Build Rating 150 | 6 8 14 25 33 49 40 50 47 53 54 72 73 117 118 124 126 133 146 131 40 37 146 146 150 Average Rating 73 | 6 6 9 19 32 32 35 46 45 49 52 66 68 103 114 114 120 125 133 109 36 25 75 143 129 On Entrance 64 | 6 6 8 14 22 33 48 36 46 45 53 53 69 72 114 114 118 121 124 134 32 38 31 146 141 Avg Prop Armor Cover (%) 21 | . . . . . 6 3 . . . . . . . . . . . . 40 36 31 17 8 9 Naked Turns . | . . . . . . . . . . . . . . . . . . . . . . . . . Heaviest Build 174 | 12 30 30 103 111 111 101 107 107 112 112 118 119 138 130 134 134 154 140 163 3 3 68 70 174 Greatest Support 163 | 20 20 25 40 40 52 20 60 60 82 82 90 98 130 130 140 150 145 145 145 3 3 70 70 163 Greatest Overweight (x) 10 | . 1 1 2 2 10 5 1 1 1 1 1 1 1 . . . 1 . 1 . . 1 4 4 Average Overweight (x) . | . . 1 1 2 2 5 1 1 1 1 1 1 . . . . . . . . . . . 2 Largest Inventory Capacity 25 | 8 15 15 25 25 25 25 25 25 25 25 25 25 25 25 25 25 25 25 25 5 5 5 5 25 Average Capacity 20 | 8 10 15 22 25 14 25 25 25 25 25 25 25 25 25 25 25 25 25 24 5 5 5 5 24 Most Carried 25 | 6 12 15 25 25 25 25 25 25 24 25 25 25 25 25 25 25 25 25 25 5 5 5 5 25 Average Carried 19 | 6 7 12 21 24 13 25 24 24 23 24 24 24 24 24 24 24 24 25 24 4 4 4 5 17 Final Capacity 25 | 8 15 15 25 25 25 25 25 25 25 25 25 25 25 25 25 25 25 25 5 5 5 5 5 25 Final Carried 25 | 6 12 15 25 25 25 25 25 25 22 25 25 25 25 25 25 25 25 25 5 5 5 5 5 20 Class Distribution -------------------- 59% | Scavenger-Tank 7% | Gunner 7% | Mutant 6% | Scavenger-Gunner 5% | Tank 4% | Scavenger-Skirmisher 4% | Scavenger-Mutant Dominant Class ---------------- Mutant | -10/Materials Mutant | -10/Mines Scavenger-Tank | -9/Materials Gunner | -9/Mines Scavenger-Tank | -9/Exiles Scavenger-Tank | -8/Mines Scavenger-Gunner | -8/Materials Scavenger-Skirmisher | -8/Storage Scavenger-Skirmisher | -7/Factory Scavenger-Tank | -7/DSF Scavenger-Tank | -6/Factory Scavenger-Tank | -6/Extension Scavenger-Tank | -6/Cetus Scavenger-Tank | -6/Archives Scavenger-Tank | -6/Hub_04(d) Scavenger-Tank | -6/Garrison Scavenger-Tank | -5/Factory Scavenger-Tank | -5/Waste Scavenger-Tank | -5/Factory Mutant | -5/Upper Caves Mutant | -5/Upper Caves Commander-Mutant | -5/Warlord Scavenger-Tank | -4/Proximity Caves Scavenger-Tank | -4/Factory Resources | -11 -10 -10 -9 -9 -9 -8 -8 -8 -7 -7 -6 -6 -6 -6 -6 -6 -5 -5 -5 -5 -5 -5 -4 -4 ----------- Run | Yrd Mat Min Mat Min Exi Min Mat Sto Fac DSF Fac Ext Cet Arc Hub Gar Fac Was Fac Upp Upp War Pro Fac Matter Collected 14679 | 210 162 663 948 154 879 153 681 291 . 355 302 1888 565 264 745 988 439 438 3182 203 92 223 90 764 Remotely . | . . . . . . . . . . . . . . . . . . . . . . . . . Salvage Created 22171 | . 249 212 1213 91 327 137 970 346 . 353 466 2103 265 409 1176 1202 589 1346 4866 130 60 451 845 4365 Parts 1079 | . 10 16 87 1 37 6 59 21 . 21 20 85 15 29 60 90 26 33 228 5 6 18 29 177 Haulers Intercepted 11 | . . . 4 . . . 2 . . . 1 . . . . 1 . . 2 . . . . 1 Recyclers Shooed 14 | . 1 2 3 . . . 1 . . . 1 . . . . . . . 5 . . . . 1 Parts Field Recycled . | . . . . . . . . . . . . . . . . . . . . . . . . . Retrieved Matter . | . . . . . . . . . . . . . . . . . . . . . . . . . Parts Self-Destructed 20 | . . . . . . . . . . . . . . . . . . . . 5 3 . 12 . Prevented 7 | . . . . . . . . . . . . . . . . . . . . 3 4 . . . Parts Restored . | . . . . . . . . . . . . . . . . . . . . . . . . . Kills | -11 -10 -10 -9 -9 -9 -8 -8 -8 -7 -7 -6 -6 -6 -6 -6 -6 -5 -5 -5 -5 -5 -5 -4 -4 ------- Run | Yrd Mat Min Mat Min Exi Min Mat Sto Fac DSF Fac Ext Cet Arc Hub Gar Fac Was Fac Upp Upp War Pro Fac Combat Hostiles Destroyed 319 | . 6 9 25 7 6 3 21 5 . 5 5 28 3 2 16 23 10 5 67 1 . 12 9 51 Melee 1 | . . . . . . . . . . . . . . . . . . . . 1 . . . . Guns 214 | . 6 4 16 7 1 3 17 5 . 5 5 28 3 2 16 19 10 5 56 . . 1 1 4 Cannons 12 | . . . 4 . . . . . . . . . . . . . . . 2 . . . . 6 AOE 79 | . . 5 5 . 5 . 4 . . . . . . . . 4 . . 8 . . 11 7 30 Classes Destroyed 27 | . 1 2 9 1 2 . 1 2 . 1 . 1 . . 1 1 1 1 . 1 1 . . 1 Worker 21 | . . . 2 . . . . . . . 2 . . . 1 . . . 8 . . . . 8 Builder 25 | . . . 4 . . . . . . . . . . . 2 . 1 . 5 . . . . 13 Tunneler 8 | . . 1 1 . . . . . . . . 1 . . . . . . 3 . . . . 2 Hauler 11 | . . . 4 . . . 2 . . . 1 . . . . 1 . . 2 . . . . 1 Recycler 8 | . . . . . . . . 1 . . . 2 . . . . . . 3 . . . . 2 Minesweeper 2 | . . . . . . . . . . . . . . . . . . . . 2 . . . . Mechanic 1 | . . . . . . . . . . . . . . . . . . . . . . . . 1 Operator 9 | . . . 1 . . . 1 . . . . . . 5 . . . . 1 . . . . 1 Turret 1 | . . . . . 1 . . . . . . . . . . . . . . . . . . . Watcher 10 | . . . 2 . . . . 1 . . 1 1 1 . 2 . . . 2 . . . . . Swarmer 32 | . . 5 . . . . 4 . . . . 1 . . 2 8 . . 8 . . . . 4 Saboteur 10 | . . . . . . . . . . . . . . . . . 2 . . . . 6 . 2 Grunt 129 | . 6 4 14 . . 2 12 . . 1 4 12 . . 3 1 3 . 28 . . 6 7 26 Brawler 15 | . . . 2 . . . . . . 1 . 1 . . . . 2 . 5 . . . 1 3 Duelist 11 | . . . 4 . . 1 . . . . . . . . . . . . 3 . . . . 3 Protector 7 | . . . 1 . . . . . . . . . . . 1 1 . . 2 . . . 2 . Sentry 43 | . . . 4 1 . . 3 3 . . 1 10 . 2 3 9 . . 4 . . . . 3 Demolisher 2 | . . . . . . . . . . . . . . . . 1 1 . . . . . . . Specialist 7 | . . . . . . . 2 . . 2 . . . . . 2 1 . . . . . . . Hunter 11 | . . . . . . . . 2 . . . . . . 1 . . . 4 . . . . 4 Programmer 21 | . . . . . . . . . . . . . . . 2 2 1 . 11 1 . . . 4 Heavy 4 | . . . . . . . . . . 1 . . . . . . . . 2 . . . . 1 Behemoth 5 | . . . . . . . . . . . . 2 . . 1 . . . . . . . 1 1 Compactor 5 | . . . . . . . . . . . . . . . . . . 5 . . . . . . Cetus Guard 3 | . . . . . . . . . . . . . 3 . . . . . . . . . . . Enhanced Grunt 1 | . . . . . . . . . . . . . . . 1 . . . . . . . . . Lightning 3 | . . . . . . . . . . . . . . . 3 . . . . . . . . . Zionite 4 | . . . . . 4 . . . . . . . . . . . . . . . . . . . Samaritan 1 | . . . . . . . . . . . . . . . . . . . . . 1 . . . Assembled 11 | . . . . 6 5 . . . . . . . . . . . . . . . . . . . Thug 2 | . . . . . . . . . . . . 1 . . . . . . . . . 1 . . Butcher 1 | . . . . . . . . . . . . 1 . . . . . . . . . . . . Guerrilla 2 | . . . . . . . . . . . . 1 . 1 . . . . . . . . . . Best Kill Streak 17 | . 2 5 7 4 5 3 5 2 . 2 4 7 2 3 8 5 6 3 10 1 . 12 4 17 Combat Bots Only 13 | . 2 4 5 4 5 3 5 1 . 2 4 7 2 2 6 5 6 3 7 1 . 12 4 13 Max Kills in Single Turn 9 | . 1 2 2 1 2 1 2 1 . 1 1 2 1 1 3 2 2 1 3 1 1 9 3 5 Gunslinging 1 | . . . . . . . . . . . . . . . . 1 1 . 1 . . . . . Exploded 8 | . . 2 2 . 2 . 2 . . . . . . . . 2 . . 2 . . 8 3 3 Melee 1 | . . . . . . . . . . . . . . . . . . . . 1 . . . . Uniques/NPCs Destroyed 4 | . . . . . 4 . . . . . . . . . . . . . . . . . . . 8R-AWN (-9/Exiles) EX-HEX (-9/Exiles) EX-DEC (-9/Exiles) EX-BIN (-9/Exiles) Combat | -11 -10 -10 -9 -9 -9 -8 -8 -8 -7 -7 -6 -6 -6 -6 -6 -6 -5 -5 -5 -5 -5 -5 -4 -4 -------- Run | Yrd Mat Min Mat Min Exi Min Mat Sto Fac DSF Fac Ext Cet Arc Hub Gar Fac Was Fac Upp Upp War Pro Fac Hostile Shots Fired 1711 | . 48 36 118 17 58 11 72 18 . 43 28 124 19 . 88 161 62 . 365 14 26 2 20 381 Missed 525 | . 18 13 24 2 10 1 26 7 . 17 10 49 9 . 23 52 9 . 74 4 15 2 7 153 Hits 1186 | . 30 23 94 15 48 10 46 11 . 26 18 75 10 . 65 109 53 . 291 10 11 . 13 228 Melee 28 | . . . 4 3 . 4 . . . . . . . . . . . . 11 . 4 . . 2 Projectile 1158 | . 30 23 90 12 48 6 46 11 . 26 18 75 10 . 65 109 53 . 280 10 7 . 13 226 AOE 2 | . . . . . . . . . . . . . . . . 2 . . . . . . . . Critical Strikes 72 | . . 1 2 . 23 . 1 1 . . 1 1 1 . 5 . . . 19 2 . . 1 14 Actively Blocked 1 | . . . . . . . . . . . . . . . . . . . 1 . . . . . Part Disruptions 4 | . . . . . . . . . . . . . . . 3 . . . 1 . . . . . Damage Taken 20414 | . 397 338 1242 230 816 234 648 177 . 424 227 906 297 . 1318 1469 855 . 6783 271 243 69 253 3217 Core 1945 | . 125 44 195 . 114 48 98 14 . . . 62 . . 5 106 54 . 472 108 125 26 22 327 Absorbed by Shields 787 | . . . . . . . . . . . . 99 . . . . . . 42 . . 17 45 584 Reduced by Siege Mode 573 | . . . . . . . . . . . . . . . 19 6 9 . 513 . . . . 26 Ignored by Resistances 1800 | . . . . . . . . . . . . . . . . . . . 449 . . 24 175 1152 Regen/Repaired (Parts) 808 | . . . . . . . . . . . . . . . . . . . 434 . . 374 . . Core Remaining (%) 59 | 100 . 32 . . . 10 . 79 . 100 . . . . . 79 . . . . . . 19 . Volleys Fired 857 | . 31 29 74 12 42 4 54 17 . 22 15 76 15 20 38 80 23 15 190 . 1 6 9 84 Largest 5 | . 2 2 3 3 3 3 3 3 . 3 4 4 4 4 4 4 5 5 5 . 1 1 1 5 Hottest 331 | . 40 90 130 75 83 69 102 75 . 75 105 110 115 140 195 140 241 165 331 . 30 300 300 300 Shots Fired 2416 | . 62 52 183 36 97 12 156 50 . 66 57 305 60 36 127 186 102 71 625 . 1 6 9 117 Gun 2244 | . 62 46 156 36 93 12 153 50 . 66 57 305 60 36 118 155 96 71 566 . 1 5 9 91 Cannon 141 | . . . 22 . . . . . . . . . . . 9 27 6 . 50 . . 1 . 26 Launcher 31 | . . 6 5 . 4 . 3 . . . . . . . . 4 . . 9 . . . . . Special . | . . . . . . . . . . . . . . . . . . . . . . . . . Kinetic 1974 | . 62 31 138 36 93 12 152 50 . 66 57 305 60 36 118 155 96 71 397 . 1 . . 38 Thermal 386 | . . 7 31 . . . 1 . . . . . . . 9 27 6 . 215 . . 5 9 76 Explosive 31 | . . 6 5 . 4 . 3 . . . . . . . . 4 . . 9 . . . . . Electromagnetic 21 | . . 8 9 . . . . . . . . . . . . . . . 4 . . . . . Entropic 4 | . . . . . . . . . . . . . . . . . . . . . . 1 . 3 Robot Hit Streak 44 | . 11 12 10 4 7 10 13 12 . 17 14 17 26 6 24 37 18 41 44 . 2 10 7 17 Robot Miss Streak 11 | . 5 2 7 11 10 1 3 1 . 2 2 3 1 1 2 1 3 2 4 . . 3 8 8 Penetration Max 2 | . . . . . 1 . . . . . . 2 1 1 2 . 1 1 2 . . . . 1 Secondary Targets 49 | . 3 . 2 4 . 2 3 . . 2 . 7 1 . 3 1 4 1 16 . . . . . Max Gunslinging Chain 2 | . 1 . 1 1 . 1 1 . . 1 . 1 1 . 1 1 1 1 2 . . . . . Shots Hit Robots 1663 | . 34 38 98 17 55 10 112 38 . 54 44 220 53 23 93 106 78 58 423 12 3 4 8 82 Core Hits 984 | . 14 20 63 13 32 5 56 18 . 15 18 91 23 12 33 38 25 13 202 3 2 28 40 220 Critical Kills 64 | . . 1 . . 2 . 1 . . . 2 3 3 7 9 12 2 3 17 . 1 . . 1 Critical Parts Destroyed 69 | . . . 1 . 3 . . . . . 2 4 6 4 13 8 4 1 21 . . . . 2 Critical Strikes 166 | . . 1 1 . 5 . 1 . . . 4 8 11 11 22 22 7 20 45 2 1 . . 5 Burn 7 | . . . . . . . . . . . . . . . . . . . 7 . . . . . Destroy 155 | . . 1 1 . 5 . 1 . . . 4 8 11 11 22 22 7 20 38 . 1 . . 3 Sever 2 | . . . . . . . . . . . . . . . . . . . . 2 . . . . Sunder 2 | . . . . . . . . . . . . . . . . . . . . . . . . 2 Melee Attacks 35 | . . . . . . . 3 2 . . 8 . . . . . . . . 18 4 . . . Impact . | . . . . . . . . . . . . . . . . . . . . . . . . . Slashing 35 | . . . . . . . 3 2 . . 8 . . . . . . . . 18 4 . . . Piercing . | . . . . . . . . . . . . . . . . . . . . . . . . . Sneak Attacks 3 | . . . . . . . . . . . . . . . . . . . . 3 . . . . Combat Hostiles . | . . . . . . . . . . . . . . . . . . . . . . . . . Follow-up Attacks . | . . . . . . . . . . . . . . . . . . . . . . . . . Damage Inflicted 51327 | . 438 792 2276 302 1209 153 2017 530 . 976 867 4263 1010 545 2603 2690 1965 1467 11799 496 93 1396 1644 11796 Guns 32919 | . 438 434 1543 287 909 153 1673 521 . 976 835 4232 1010 545 2562 2433 1842 1467 9917 . 23 30 83 1006 Cannons 1919 | . . . 316 . . . . . . . . . . . 31 . 123 . 533 . . . . 916 Explosions 15619 | . . 327 394 . 300 . 336 . . . . . . . . 257 . . 1273 . . 1366 1561 9805 Melee 566 | . . . . . . . . . . . . . . . . . . . . 496 70 . . . Ramming 304 | . . 31 23 15 . . 8 9 . . 32 31 . . 10 . . . 76 . . . . 69 Kinetic 29547 | . 438 323 1611 287 909 153 1673 521 . 976 835 4232 1010 545 2562 2433 1842 1467 7124 . 23 . . 583 Thermal 17071 | . . 47 161 . . . . . . . . . . . 31 . 123 . 3417 . . 1396 1644 10252 Explosive 2619 | . . 327 352 . 300 . 336 . . . . . . . . 257 . . 1047 . . . . . Electromagnetic 872 | . . 64 129 . . . . . . . . . . . . . . . 135 . . . . 544 Impact . | . . . . . . . . . . . . . . . . . . . . . . . . . Slashing 566 | . . . . . . . . . . . . . . . . . . . . 496 70 . . . Piercing . | . . . . . . . . . . . . . . . . . . . . . . . . . Entropic 348 | . . . . . . . . . . . . . . . . . . . . . . . . 348 Highest Corruption 32 | . . . . . . . . . . . . 5 5 5 8 8 1 14 26 31 32 32 . 1 Average Corruption 12 | . . . . . . . . . . . . 5 5 3 7 8 1 9 17 28 31 32 . 1 Corruption Purged 5 | . . . . . . . . . . . . . . 5 . . . . . . . . . . Corruption Blocked . | . . . . . . . . . . . . . . . . . . . . . . . . . Effects 352 | . . . . . . . . . . . . 40 10 2 7 62 1 8 169 32 16 1 . 4 Message Errors 94 | . . . . . . . . . . . . 18 5 1 2 15 . 1 36 11 5 . . . Matter Fused 71 | . . . . . . . . . . . . 7 2 1 1 12 . 2 35 4 6 1 . . Heat Flow Errors 37 | . . . . . . . . . . . . 5 . . . 5 1 1 20 4 1 . . . Energy Discharges 39 | . . . . . . . . . . . . 4 3 . 1 7 . 1 19 3 1 . . . Parts Rejected 3 | . . . . . . . . . . . . . . . . . . . 2 . . . . 1 Parts Fused 5 | . . . . . . . . . . . . . . . . 1 . . 3 1 . . . . Data Loss (minor) 29 | . . . . . . . . . . . . 3 . . . 6 . 1 11 6 . . . 2 Data Loss (major) 17 | . . . . . . . . . . . . . . . 3 6 . . 5 1 1 . . 1 Misfires 11 | . . . . . . . . . . . . 2 . . . 3 . . 6 . . . . . Alerts 9 | . . . . . . . . . . . . . . . . 1 . . 4 2 2 . . . Misdirections 6 | . . . . . . . . . . . . . . . . . . . 6 . . . . . Weapon Failures 31 | . . . . . . . . . . . . 1 . . . 6 . 2 22 . . . . . Overload Shots . | . . . . . . . . . . . . . . . . . . . . . . . . . Overflow Damage 436 | . . 28 . . 25 . 23 . . . 8 . . . . 3 . . 32 106 . 38 . 173 Projectiles 91 | . . . . . . . . . . . . . . . . . . . 3 . . . . 88 Explosions 231 | . . 28 . . 25 . 23 . . . . . . . . 3 . . 29 . . 38 . 85 Melee 114 | . . . . . . . . . . . 8 . . . . . . . . 106 . . . . Knockbacks 3 | . . . 2 . . . . . . . . . . . . . . . . . . . . 1 Impact 1 | . . . . . . . . . . . . . . . . . . . . . . . . 1 Kinetic 2 | . . . 2 . . . . . . . . . . . . . . . . . . . . . Secondary . | . . . . . . . . . . . . . . . . . . . . . . . . . Self-Inflicted Damage 420 | . . 46 . . 12 . . . . . . . . . . 9 . . 212 . . 10 57 74 Shots 19 | . . 2 . . 1 . . . . . . . . . . 1 . . 3 . . 1 5 6 Rammed 25 | . . . 3 2 . . 2 3 . . 1 1 . . 2 . . . 7 . . . . 4 Targets Rammed 33 | . . 6 3 2 . . 2 3 . . 2 1 . . 2 . . . 8 . . . . 4 Kicked 6 | . . 6 . . . . . . . . . . . . . . . . . . . . . . Crushed 2 | . . . . . . . . . . . 1 . . . . . . . 1 . . . . . Highest Temperature 559 | . 8 30 164 110 290 98 66 32 . 155 308 240 5 . 96 243 280 150 559 205 52 244 135 515 Average Temperature 82 | . 2 12 45 46 103 40 30 13 . 54 95 49 5 . 30 63 98 12 100 102 52 114 59 121 Received Heat Transfer 4727 | . 216 159 528 69 36 54 279 36 . 135 118 280 9 . 117 192 375 . 1155 . . 4 42 923 Effects 14 | . . . . . . . . . . . . . . . . . . . 6 . . . . 8 Shutdowns 3 | . . . . . . . . . . . . . . . . . . . 2 . . . . 1 Energy Bleed 1 | . . . . . . . . . . . . . . . . . . . . . . . . 1 Interference 2 | . . . . . . . . . . . . . . . . . . . 1 . . . . 1 Matter Decay 2 | . . . . . . . . . . . . . . . . . . . . . . . . 2 Short Circuit 1 | . . . . . . . . . . . . . . . . . . . 1 . . . . . Damage (minor) 2 | . . . . . . . . . . . . . . . . . . . 2 . . . . . Damage (major) 3 | . . . . . . . . . . . . . . . . . . . . . . . . 3 Siege Activations 24 | . . . . . . . . . . . . . . . 1 4 1 . 14 . . . . 4 Total Turns 359 | . . . . . . . . . . . . . . . 27 49 9 . 259 . . . . 15 Longest Duration 36 | . . . . . . . . . . . . . . . 27 29 9 . 36 . . . . 7 Martial Activations . | . . . . . . . . . . . . . . . . . . . . . . . . . Shielding Activations . | . . . . . . . . . . . . . . . . . . . . . . . . . Robots Disrupted 3 | . . . 1 . . . . . . . . . . . . . . . . . . . . 2 Combat Hostiles 2 | . . . 1 . . . . . . . . . . . . . . . . . . . . 1 Robots Corrupted 5 | . . . 1 . . . . . . . 1 . . . . . . . 1 . . . . 2 Combat Hostiles 2 | . . . . . . . . . . . . . . . . . . . 1 . . . . 1 Parts Fried 9 | . . . 1 . . . . . . . 2 1 . . . . . . 2 . . . . 3 Impact Corruptions 1 | . . . . . . . . . . . 1 . . . . . . . . . . . . . Robots Melted 11 | . . . . . . . . . . . . . . . . . . . . . . . 1 10 Combat Hostiles 11 | . . . . . . . . . . . . . . . . . . . . . . . 1 10 Parts Melted 72 | . . . . . 7 . . . . . . . . . . . . . 6 . . 3 12 44 Heat Transferred 24604 | . . 112 446 . . . . . . . . . . . 50 . 111 . 5684 . . 1692 2520 13989 Parts Sabotaged . | . . . . . . . . . . . . . . . . . . . . . . . . . Parts Stolen 2 | . . . . . . . . . . . . . . . . . . . . . 2 . . . Parts Stripped . | . . . . . . . . . . . . . . . . . . . . . . . . . Power Chain Reactions 2 | . . . 1 . . . . . . . . . . . . . . . . . . . . 1 Alert | -11 -10 -10 -9 -9 -9 -8 -8 -8 -7 -7 -6 -6 -6 -6 -6 -6 -5 -5 -5 -5 -5 -5 -4 -4 ------- Run | Yrd Mat Min Mat Min Exi Min Mat Sto Fac DSF Fac Ext Cet Arc Hub Gar Fac Was Fac Upp Upp War Pro Fac Maximum Alert Level 5 | . . . 1 . . . 1 1 . 1 1 2 1 1 2 4 3 1 4 . . . . 5 Low Security (%) 50 | 100 100 100 92 100 . 100 87 91 100 60 98 61 29 69 23 . . 42 13 . . . . . Level 1 15 | . . . 7 . . . 12 8 . 39 1 38 70 30 33 4 . 57 13 . . . . . Level 2 13 | . . . . . . . . . . . . . . . 42 18 80 . 17 . . . . 44 Level 3 12 | . . . . . . . . . . . . . . . . 51 19 . 26 . . . . 36 Level 4 7 | . . . . . . . . . . . . . . . . 24 . . 28 . . . . 7 Level 5 . | . . . . . . . . . . . . . . . . . . . . . . . . 12 High Security . | . . . . . . . . . . . . . . . . . . . . . . . . . Max Security . | . . . . . . . . . . . . . . . . . . . . . . . . . Sterilizations 1 | . . . . . . . . . . 1 . . . . . . . . . . . . . . Peak Influence 1937 | . 76 120 222 69 . 52 279 212 71 333 204 460 299 248 565 1346 759 255 1402 . . . . 1937 Initial 802 | . . 17 . 69 . . 4 117 71 46 174 . 256 72 38 359 701 255 111 . . . . 802 Average 382 | . 34 40 119 5 . 28 122 136 70 177 89 185 224 172 349 875 648 209 754 . . . . 880 Influence Increases 13511 | . 187 343 748 46 . 72 611 669 5 287 182 1238 307 256 1158 1047 380 4 2167 40 165 666 274 2659 Destroy 0b10 Robot/C 7260 | . 120 220 480 40 . 60 420 320 . 220 100 740 160 80 520 540 260 . 1300 20 . 460 180 1020 Destroy 0b10 Robot/NC 570 | . . 10 75 . . . 15 15 . 5 20 40 10 25 60 10 5 . 130 10 . . . 140 Destroy Leader 1186 | . 20 50 112 . . 10 84 84 . 30 24 66 . . 146 40 20 . 268 10 . . 30 192 Allied During Kill 999 | . . 5 . 6 . 2 . 81 . 16 . 265 127 105 189 33 35 . . . . 131 4 . Trap Triggered on 0b10 10 | . . . . . . . . 10 . . . . . . . . . . . . . . . . Successful Hack 224 | . 17 . 5 . . . . 37 5 . 14 63 . . 8 . 21 . 46 . . . . 8 Select Force Hacks 100 | . . . . . . . . . . . . . . . 100 . . . . . . . . . Disable Machine 645 | . . . 60 . . . 15 15 . . 15 15 . 45 75 30 15 . 120 . . . . 240 Anti-Garrison Action 450 | . . . . . . . . . . . . . . . . 300 . . . . . . . 150 Destroy Structure 567 | . . 28 16 . . . 32 2 . 1 9 19 10 1 45 94 24 4 228 . . . . 54 Advance Influence 750 | . . . . . . . . . . . . . . . . . . . . . . . . 750 Partial Spotted 15 | . . . . . . . 15 . . . . . . . . . . . . . . . . . Lose Combat Pursuer 735 | . 30 30 . . . . 30 105 . 15 . 30 . . 15 . . . 75 . 165 75 60 105 Influence Decreases 11594 | . 141 389 570 224 . 60 344 790 97 20 515 780 584 327 754 225 985 576 987 792 292 566 750 826 Entered New Map 3931 | . . 29 . 109 . . 8 162 87 20 159 . 202 109 72 155 635 476 48 496 112 460 560 32 Time Decay 6133 | . 141 329 515 105 . 40 326 428 10 . 356 600 262 198 488 . 270 100 709 286 160 86 190 534 Search Patrol Dispatched 200 | . . . . . . . . . . . . . . . . . . . . . . . . 200 Lost Part 415 | . . 20 45 . . . 10 . . . . . . . . 10 10 . 230 10 20 . . 60 Lost Ally 765 | . . 11 10 10 . 20 . 200 . . . 180 120 20 44 60 70 . . . . 20 . . Purge Threat 150 | . . . . . . . . . . . . . . . 150 . . . . . . . . . Squads Dispatched 64 | . . 1 1 . . . 6 2 . 2 2 1 . . 7 . 2 . 23 . . . . 17 Investigation 8 | . . . . . . . 1 1 . . . . . . 5 . . . . . . . . 1 Extermination 10 | . . . . . . . . . . . 1 . . . 2 . . . 5 . . . . 2 Reinforcement 23 | . . . . . . . 4 1 . 2 1 1 . . . . . . 9 . . . . 5 Assault 17 | . . 1 1 . . . . . . . . . . . . . 2 . 6 . . . . 7 Garrison 6 | . . . . . . . 1 . . . . . . . . . . . 3 . . . . 2 Intercept . | . . . . . . . . . . . . . . . . . . . . . . . . . Searches Triggered 2 | . . . . . . . . . . . . . . . . . . . . . . . . 2 Construction Impeded 7 | . . . . . . . 1 . . . . 1 . . . . . . 3 . . . . 2 Haulers Reinforced 3 | . . . . . . . . . . . . . . . . . . . 2 . . . . 1 Active Scanning Responses . | . . . . . . . . . . . . . . . . . . . . . . . . . Cargo Convoy Interrupts . | . . . . . . . . . . . . . . . . . . . . . . . . . Stealth | -11 -10 -10 -9 -9 -9 -8 -8 -8 -7 -7 -6 -6 -6 -6 -6 -6 -5 -5 -5 -5 -5 -5 -4 -4 --------- Run | Yrd Mat Min Mat Min Exi Min Mat Sto Fac DSF Fac Ext Cet Arc Hub Gar Fac Was Fac Upp Upp War Pro Fac Distress Signals 34 | . 1 . 2 2 . . 3 3 . . 1 2 2 . 4 . . . 5 . . 1 2 6 Communications Jammed 22 | . . . . . . . . . . . . . . . . . . . 8 . . . . 14 Distress Signals 15 | . . . . . . . . . . . . . . . . . . . 2 . . . . 13 Times Spotted 565 | . 9 15 37 16 9 3 33 17 . 12 8 44 9 8 30 25 14 5 95 5 17 61 17 76 Peak Tracking Total 13 | . 4 4 6 4 9 3 5 5 . 6 4 5 5 1 6 4 6 3 13 3 8 13 8 11 Tactical Retreats 29 | . 1 2 . . . . 1 4 . 1 . 1 . . 1 . . 1 4 1 4 2 2 4 ECM-based Alert Blocks 1 | . . . . . . . . . . . . . . . . . . . . 1 . . . . Traps | -11 -10 -10 -9 -9 -9 -8 -8 -8 -7 -7 -6 -6 -6 -6 -6 -6 -5 -5 -5 -5 -5 -5 -4 -4 ------- Run | Yrd Mat Min Mat Min Exi Min Mat Sto Fac DSF Fac Ext Cet Arc Hub Gar Fac Was Fac Upp Upp War Pro Fac Traps Triggered 18 | . . . 1 . . . 1 . . 1 . 6 . . . 3 1 . 1 1 . 1 . 2 Indirectly 1 | . . . 1 . . . . . . . . . . . . . . . . . . . . . Trap Hack Attempts . | . . . . . . . . . . . . . . . . . . . . . . . . . Triggered . | . . . . . . . . . . . . . . . . . . . . . . . . . Disarmed . | . . . . . . . . . . . . . . . . . . . . . . . . . Reprogrammed 6 | . . . . . . . . 6 . . . . . . . . . . . . . . . . Reused 4 | . . . . . . . . 1 . . . . . . . . . . . 1 2 . . . Traps Extracted . | . . . . . . . . . . . . . . . . . . . . . . . . . Installed 10 | . . . . . . . . . . . . . . . . . . . . 8 2 . . . Triggered 4 | . . . . . . . . 1 . . . . . . . . . . . 1 2 . . . Most Traps Carried 2 | . . . . . . . . . . . . . . . . . . . . 2 1 1 . . Machines | -11 -10 -10 -9 -9 -9 -8 -8 -8 -7 -7 -6 -6 -6 -6 -6 -6 -5 -5 -5 -5 -5 -5 -4 -4 ---------- Run | Yrd Mat Min Mat Min Exi Min Mat Sto Fac DSF Fac Ext Cet Arc Hub Gar Fac Was Fac Upp Upp War Pro Fac Machines Disabled 61 | . . . 4 1 9 . 1 1 . . 1 2 . 3 5 7 1 . 8 . . 1 . 17 Max in Single Turn 14 | . . . 3 1 2 . 1 1 . . 1 1 . 1 1 1 1 . 4 . . 1 . 14 Garrison Access 3 | . . . . . . . . . . . 1 . . . . . . . 1 . . . . 1 Garrison Relay 4 | . . . . . . . . . . . . . . . . 4 . . . . . . . . Network Hub 2 | . . . . . . . . . . . . . . . 2 . . . . . . . . . Energy Cycler 1 | . . . . . . . . . . . . 1 . . . . . . . . . . . . Machines Repaired . | . . . . . . . . . . . . . . . . . . . . . . . . . Machines Dismantled . | . . . . . . . . . . . . . . . . . . . . . . . . . Machines Sabotaged 2 | . . . . . . . . . . . . . . . 2 . . . . . . . . . Overloaded Fab Kills . | . . . . . . . . . . . . . . . . . . . . . . . . . Hacking | -11 -10 -10 -9 -9 -9 -8 -8 -8 -7 -7 -6 -6 -6 -6 -6 -6 -5 -5 -5 -5 -5 -5 -4 -4 --------- Run | Yrd Mat Min Mat Min Exi Min Mat Sto Fac DSF Fac Ext Cet Arc Hub Gar Fac Was Fac Upp Upp War Pro Fac Machines Accessed 62 | . 4 1 2 . 2 . 6 5 1 . 3 6 . . 7 1 4 . 15 . . 1 . 4 Terminals 47 | . 4 . 2 . . . 5 5 1 . 2 6 . . 6 1 2 . 10 . . . . 3 Fabricators 2 | . . . . . . . . . . . . . . . . . 1 . 1 . . . . . Repair Stations 4 | . . . . . . . 1 . . . . . . . . . 1 . 2 . . . . . Recycling Units . | . . . . . . . . . . . . . . . . . . . . . . . . . Scanalyzers 1 | . . . . . . . . . . . . . . . . . . . 1 . . . . . Garrison Access 4 | . . . . . . . . . . . 1 . . . 1 . . . 1 . . . . 1 Total Hacks 188 | . 16 1 3 . 2 . 12 16 3 . 5 17 . . 17 2 24 . 57 . . 1 . 12 Successful 70 | . 7 1 2 . 2 . 4 10 1 . 2 6 . . 11 . 9 . 12 . . 1 . 2 Failed 118 | . 9 . 1 . . . 8 6 2 . 3 11 . . 6 2 15 . 45 . . . . 10 Catastrophic 30 | . 2 . 1 . . . 2 . . . 2 3 . . 1 1 3 . 13 . . . . 2 Database Lockouts . | . . . . . . . . . . . . . . . . . . . . . . . . . Manual 65 | . 9 . 2 . 1 . 3 6 . . 1 6 1 . 10 . 14 . 8 . . . . 4 Terminals 128 | . 16 . 3 . . . 10 16 3 . 4 17 . . 16 2 8 . 26 . . . . 7 Fabricators 14 | . . . . . . . . . . . . . . . . . 12 . 2 . . . . . Repair Stations 17 | . . . . . . . 2 . . . . . . . . . 4 . 11 . . . . . Recycling Units . | . . . . . . . . . . . . . . . . . . . . . . . . . Scanalyzers 15 | . . . . . . . . . . . . . . . . . . . 15 . . . . . Garrison Access 10 | . . . . . . . . . . . 1 . . . 1 . . . 3 . . . . 5 Terminal Hacks 39 | . 6 1 2 . 2 . 2 8 1 . . 6 . . 5 . 1 . 2 . . 1 . 2 Record 1 | . . . . . 1 . . . . . . . . . . . . . . . . . . . Robot Analysis 1 | . 1 . . . . . . . . . . . . . . . . . . . . . . . Prototype ID Bank 4 | . 1 . . . . . . 1 . . . 2 . . . . . . . . . . . . Open Door 3 | . . 1 . . . . . . . . . 1 . . . . . . . . . 1 . . Open DSF 1 | . . . . . . . . . 1 . . . . . . . . . . . . . . . Level Access Points 1 | . . . . . . . . . . . . . . . 1 . . . . . . . . . Branch Access Points 4 | . 1 . . . . . . . . . . . . . . . 1 . 1 . . . . 1 Emergency Access Points 1 | . . . . . . . . . . . . . . . 1 . . . . . . . . . Terminal Index 1 | . . . . . . . . 1 . . . . . . . . . . . . . . . . Alert Level 1 | . . . . . . . . . . . . . . . 1 . . . . . . . . . Unreport Threat 1 | . . . . . . . . . . . . . . . 1 . . . . . . . . . Locate Traps 3 | . . . . . . . 1 1 . . . . . . . . . . 1 . . . . . Reprogram Traps 1 | . . . . . . . . 1 . . . . . . . . . . . . . . . . Transport Status 1 | . . . 1 . . . . . . . . . . . . . . . . . . . . . Hauler Manifests 5 | . 1 . 1 . . . . 2 . . . 1 . . . . . . . . . . . . Registered Components 3 | . 1 . . . . . . 1 . . . 1 . . . . . . . . . . . . Zone Layout 6 | . 1 . . . . . 1 1 . . . 1 . . 1 . . . . . . . . 1 Proto ID Catalog 1 | . . . . . 1 . . . . . . . . . . . . . . . . . . . Fabricator Hacks 2 | . . . . . . . . . . . . . . . . . 2 . . . . . . . Network Status 1 | . . . . . . . . . . . . . . . . . 1 . . . . . . . Build 1 | . . . . . . . . . . . . . . . . . 1 . . . . . . . Repair Station Hacks 5 | . . . . . . . 1 . . . . . . . . . 1 . 3 . . . . . Scan Component 4 | . . . . . . . 1 . . . . . . . . . 1 . 2 . . . . . Repair 1 | . . . . . . . . . . . . . . . . . . . 1 . . . . . Recycling Unit Hacks . | . . . . . . . . . . . . . . . . . . . . . . . . . Scanalyzer 6 | . . . . . . . . . . . . . . . . . . . 6 . . . . . Insert Component 1 | . . . . . . . . . . . . . . . . . . . 1 . . . . . Retrieve Study 5 | . . . . . . . . . . . . . . . . . . . 5 . . . . . Garrison Access Hacks 3 | . . . . . . . . . . . 1 . . . 1 . . . 1 . . . . . Unlock Access 1 | . . . . . . . . . . . . . . . 1 . . . . . . . . . Seal Access 2 | . . . . . . . . . . . 1 . . . . . . . 1 . . . . . Unauthorized Hacks 15 | . 1 . . . . . 1 2 . . 1 . . . 5 . 5 . . . . . . . Terminals 11 | . 1 . . . . . 1 2 . . 1 . . . 5 . 1 . . . . . . . Assimilate 2 | . 1 . . . . . . . . . . . . . . . 1 . . . . . . . Botnet 4 | . . . . . . . 1 2 . . 1 . . . . . . . . . . . . . Sabotage 5 | . . . . . . . . . . . . . . . 5 . . . . . . . . . Fabricators 4 | . . . . . . . . . . . . . . . . . 4 . . . . . . . Report 1 | . . . . . . . . . . . . . . . . . 1 . . . . . . . Prioritize 1 | . . . . . . . . . . . . . . . . . 1 . . . . . . . Liberate 1 | . . . . . . . . . . . . . . . . . 1 . . . . . . . Haulers 1 | . . . . . . . . . . . . . . . . . 1 . . . . . . . Repair Stations . | . . . . . . . . . . . . . . . . . . . . . . . . . Recycling Units . | . . . . . . . . . . . . . . . . . . . . . . . . . Scanalyzers . | . . . . . . . . . . . . . . . . . . . . . . . . . Garrison Access . | . . . . . . . . . . . . . . . . . . . . . . . . . Data Cores Recovered . | . . . . . . . . . . . . . . . . . . . . . . . . . Used . | . . . . . . . . . . . . . . . . . . . . . . . . . Hacking Detections 48 | . 4 . 2 . . . 6 4 1 . 2 5 . . 1 1 4 . 14 . . . . 4 Full Trace Events . | . . . . . . . . . . . . . . . . . . . . . . . . . Feedback Events . | . . . . . . . . . . . . . . . . . . . . . . . . . Feedback Blocked . | . . . . . . . . . . . . . . . . . . . . . . . . . Robot Schematics Acquired . | . . . . . . . . . . . . . . . . . . . . . . . . . Robots Built 3 | . . . . . . . . . . . . . . . . . 3 . . . . . . . Authchips . | . . . . . . . . . . . . . . . . . . . . . . . . . Time 152 | . . . . . . . . . . . . . . . . . 152 . . . . . . . Total Robot Build Rating 15 | . . . . . . . . . . . . . . . . . 15 . . . . . . . Part Schematics Acquired . | . . . . . . . . . . . . . . . . . . . . . . . . . Parts Built . | . . . . . . . . . . . . . . . . . . . . . . . . . Authchips . | . . . . . . . . . . . . . . . . . . . . . . . . . Time . | . . . . . . . . . . . . . . . . . . . . . . . . . Total Part Build Rating . | . . . . . . . . . . . . . . . . . . . . . . . . . Part Studies Acquired 5 | . . . . . . . . . . . . . . . . . . . 5 . . . . . Parts Repaired 1 | . . . . . . . . . . . . . . . . . . . 1 . . . . . Time 39 | . . . . . . . . . . . . . . . . . . . 39 . . . . . Parts Recycled . | . . . . . . . . . . . . . . . . . . . . . . . . . Recycled Matter . | . . . . . . . . . . . . . . . . . . . . . . . . . Retrieved Matter . | . . . . . . . . . . . . . . . . . . . . . . . . . Retrieved Components . | . . . . . . . . . . . . . . . . . . . . . . . . . Parts Scanalyzed 1 | . . . . . . . . . . . . . . . . . . . 1 . . . . . Part Schematics Acquired . | . . . . . . . . . . . . . . . . . . . . . . . . . Parts Damaged 1 | . . . . . . . . . . . . . . . . . . . 1 . . . . . Bothacking | -11 -10 -10 -9 -9 -9 -8 -8 -8 -7 -7 -6 -6 -6 -6 -6 -6 -5 -5 -5 -5 -5 -5 -4 -4 ------------ Run | Yrd Mat Min Mat Min Exi Min Mat Sto Fac DSF Fac Ext Cet Arc Hub Gar Fac Was Fac Upp Upp War Pro Fac Used RIF Installer . | . . . . . . . . . . . . . . . . . . . . . . . . . Robots Hacked . | . . . . . . . . . . . . . . . . . . . . . . . . . Non-combat . | . . . . . . . . . . . . . . . . . . . . . . . . . Combat . | . . . . . . . . . . . . . . . . . . . . . . . . . Robot Hacks Applied . | . . . . . . . . . . . . . . . . . . . . . . . . . Relay Couplers Released 15 | . . . . . . . . . . . . . . . . 14 . . . . . . . 1 Machine Destruction 15 | . . . . . . . . . . . . . . . . 14 . . . . . . . 1 Fabnet Peak Effective % . | . . . . . . . . . . . . . . . . . . . . . . . . . Robots Rewired 25 | . . . . . . . . . . . . 17 . . . 3 . . . . . 5 . . Allies Hacked . | . . . . . . . . . . . . . . . . . . . . . . . . . Hacks Repelled . | . . . . . . . . . . . . . . . . . . . . . . . . . Allies | -11 -10 -10 -9 -9 -9 -8 -8 -8 -7 -7 -6 -6 -6 -6 -6 -6 -5 -5 -5 -5 -5 -5 -4 -4 -------- Run | Yrd Mat Min Mat Min Exi Min Mat Sto Fac DSF Fac Ext Cet Arc Hub Gar Fac Was Fac Upp Upp War Pro Fac Total Allies 52 | . 1 1 . 3 . . . 10 . . . 20 5 . . 3 4 . . . . 5 . . Largest Group 10 | . 1 2 1 3 3 1 . 10 . . . 10 9 5 4 3 4 . . . . 5 2 . Highest-Rated Group 615 | . 10 41 10 40 40 16 . 173 . . . 410 615 416 377 36 97 . . . . 264 118 . Highest-Rated Ally 159 | . 10 31 10 16 16 16 . 29 . . . 159 138 96 96 12 29 . . . . 64 64 . Initial Warlord ECA Mod 16 | . . . . . . . . . . . 9 9 9 9 9 9 16 16 16 16 16 16 15 15 Total Orders 26 | . . . . 6 10 . . . . . . . 4 . 4 . . . . . . 2 . . STAY 10 | . . . . . 5 . . . . . . . 2 . 2 . . . . . . 1 . . FOLLOW 10 | . . . . . 5 . . . . . . . 2 . 2 . . . . . . 1 . . EXPLORE 6 | . . . . 6 . . . . . . . . . . . . . . . . . . . . Ally Attacks 538 | . . 14 . 10 90 5 . 83 . 14 . 80 42 9 69 41 41 . . . . 40 . . Total Damage 11296 | . . 208 . 96 670 80 . 1334 . 627 . 2217 909 315 2181 957 512 . . . . 1190 . . Kills 88 | . . 3 . 1 5 . . 12 . 6 . 15 7 2 17 5 3 . . . . 12 . . Allies Corrupted 2 | . . . . 2 . . . . . . . . . . . . . . . . . . . . Allies Melted 2 | . . . . . . . . . . . . 1 . . . 1 . . . . . . . . Turrets Deployed 4 | . . . . . . . . 1 . 1 . . . . . 2 . . . . . . . . Intel | -11 -10 -10 -9 -9 -9 -8 -8 -8 -7 -7 -6 -6 -6 -6 -6 -6 -5 -5 -5 -5 -5 -5 -4 -4 ------- Run | Yrd Mat Min Mat Min Exi Min Mat Sto Fac DSF Fac Ext Cet Arc Hub Gar Fac Was Fac Upp Upp War Pro Fac Active Infowar (turns) 7623 | . . . 530 . 364 . 326 982 19 . 816 87 . . . . . . 1600 1 80 718 593 1507 Optics 2148 | . . . . . . . . . . . . . . . . . . . . . . 48 593 1507 Sensors 1867 | . . . . . . . . 506 19 . 816 87 . . . . . . 184 . . . . 255 Terrain 1965 | . . . . . 364 . 326 476 . . . . . . . . . . 799 . . . . . T.N.C. 530 | . . . 530 . . . . . . . . . . . . . . . . . . . . . Machine Analysis 750 | . . . . . . . . . . . . . . . . . . . . . 80 670 . . Cloaking 1 | . . . . . . . . . . . . . . . . . . . 1 . . . . . Jamming 2204 | . . . . . . . . . . . . . . . . . . . 1331 . . . . 873 ECM 3 | . . . . . . . . . . . . . . . . . . . . 1 . . 2 . Robot Analysis Total 1 | . 1 . . . . . . . . . . . . . . . . . . . . . . . Derelict Logs Recovered 7 | . . 2 . . . . . . . . . . . . . . . . . 1 2 . 2 . Drone Launches 12 | . . . . 12 . . . . . . . . . . . . . . . . . . . . Drone Recoveries . | . . . . . . . . . . . . . . . . . . . . . . . . . Exploration | -11 -10 -10 -9 -9 -9 -8 -8 -8 -7 -7 -6 -6 -6 -6 -6 -6 -5 -5 -5 -5 -5 -5 -4 -4 ------------- Run | Yrd Mat Min Mat Min Exi Min Mat Sto Fac DSF Fac Ext Cet Arc Hub Gar Fac Was Fac Upp Upp War Pro Fac Turns Passed 24697 | 9 320 867 1538 1452 2989 84 939 1057 22 223 894 2284 561 414 1280 1692 585 209 3173 627 329 1049 593 1507 Spaces Moved 11868 | 7 154 364 422 405 1507 13 302 295 8 76 337 775 264 148 665 840 297 84 1284 996 577 1022 377 649 Core 1789 | . . . . . . . . . . . . . . . . . . . 61 996 577 155 . . Treads 7609 | . . . 388 405 963 13 302 295 8 76 337 775 264 148 665 840 297 84 1223 . . 71 198 257 Legs 757 | 7 154 364 34 . 1 . . . . . . . . . . . . . . . . 197 . . Wheels 1114 | . . . . . 543 . . . . . . . . . . . . . . . . . 179 392 Hover 599 | . . . . . . . . . . . . . . . . . . . . . . 599 . . Flight . | . . . . . . . . . . . . . . . . . . . . . . . . . Fastest Speed 50 | 120 120 190 160 320 95 560 240 240 236 236 238 238 163 163 160 152 162 162 50 50 50 50 130 130 Average Speed 165 | 120 139 190 274 320 179 560 240 240 236 236 238 241 174 163 160 158 163 168 168 50 50 81 145 165 Slowest Speed 560 | 120 190 190 320 320 330 560 240 240 236 238 238 242 243 163 163 160 247 170 235 50 50 176 170 240 Overloaded Moves . | . . . . . . . . . . . . . . . . . . . . . . . . . Propulsion Burnouts . | . . . . . . . . . . . . . . . . . . . . . . . . . Robots Hopped 7 | . . . . . . . . 7 . . . . . . . . . . . . . . . . Potential Cave-ins . | . . . . . . . . . . . . . . . . . . . . . . . . . Cave-ins Triggered . | . . . . . . . . . . . . . . . . . . . . . . . . . Exploration Rate (%) 52 | 2 26 77 37 95 92 5 33 53 . 74 14 87 56 73 55 68 11 75 34 63 61 88 66 23 Regions Visited 24 Branch Regions 13 Pre-discovered Areas 3 | . . 1 . . 1 . . . . . . . . . . . . . . 1 . . . . Known Exits Taken 6 | . 1 . . . . 1 . 1 1 . . . . . 1 . . . 1 . . . . . Unknown Exits Taken 14 | 1 . 1 1 1 1 . 1 . . . 1 1 1 1 . . . . . 1 1 1 1 . Scrap Searched 13 | . . 1 . 1 . . . . . . . . . . . . . . . 4 3 . 4 . Spaces Dug 63 | . . . . . . . 3 . . . 8 . . . 6 15 3 . 25 1 . . . 2 Terrain Destroyed 387 | . . 30 11 . 22 . 27 . . . 9 8 . 6 30 55 18 2 128 1 . 1 . 39 Melee 12 | . . . . . . . 3 . . . 8 . . . . . . . . 1 . . . . Projectile 154 | . . . . . 2 . . . . . 1 1 . 6 30 17 18 2 57 . . 1 . 19 AOE 218 | . . 30 11 . 20 . 24 . . . . 7 . . . 37 . . 69 . . . . 20 Terrain Rammed . | . . . . . . . . . . . . . . . . . . . . . . . . . Walls Destroyed . | . . . . . . . . . . . . . . . . . . . . . . . . . Machines Disabled . | . . . . . . . . . . . . . . . . . . . . . . . . . Actions | -11 -10 -10 -9 -9 -9 -8 -8 -8 -7 -7 -6 -6 -6 -6 -6 -6 -5 -5 -5 -5 -5 -5 -4 -4 --------- Run | Yrd Mat Min Mat Min Exi Min Mat Sto Fac DSF Fac Ext Cet Arc Hub Gar Fac Was Fac Upp Upp War Pro Fac Total 15359 | 7 200 481 657 536 1721 21 423 600 11 109 408 1107 339 296 792 1066 342 110 1868 1097 611 1230 401 926 Wait 1164 | . 1 56 67 100 31 . 11 259 . . 1 15 4 108 37 90 7 1 199 61 8 59 5 44 Move 11831 | 6 153 363 421 404 1506 12 301 280 7 75 336 774 263 147 664 838 297 83 1284 995 576 1021 376 649 Hop 7 | . . . . . . . . 7 . . . . . . . . . . . . . . . . Pick Up 263 | . 8 8 30 8 56 1 13 6 . 4 13 9 9 6 9 6 4 1 30 4 7 5 . 26 Fast Attach 128 | . 1 1 6 1 15 . 3 4 . 1 2 5 13 2 6 3 . 2 17 5 4 19 5 13 Attach 99 | . . 3 8 . 4 . 5 1 2 . 2 2 1 . 4 1 4 . 24 . 1 3 . 34 Detach 70 | . . . 4 . 12 . 1 . . 1 1 . . 1 5 1 2 . 9 . 1 8 . 24 Swap 257 | 1 2 8 21 . 7 3 14 10 2 4 11 8 10 5 16 19 3 5 79 . . 2 1 26 Drop 304 | . 4 7 23 9 48 1 16 11 . 2 17 17 24 7 11 10 2 3 29 6 7 23 5 22 Fire 857 | . 31 29 74 12 42 4 54 17 . 22 15 76 15 20 38 80 23 15 190 . 1 6 9 84 Melee 35 | . . . . . . . 3 2 . . 8 . . . . . . . . 18 4 . . . Ram . | . . . . . . . . . . . . . . . . . . . . . . . . . Kick 6 | . . 6 . . . . . . . . . . . . . . . . . . . . . . Crush 26 | . . . 3 2 . . 2 3 . . 2 1 . . 2 . . . 7 . . . . 4 Escape Stasis 10 | . . . . . . . . . . . . 10 . . . . . . . . . . . . Rewire 292 | . . . . . . . . . . . . 190 . . . 18 . . . . . 84 . . Trap 10 | . . . . . . . . . . . . . . . . . . . . 8 2 . . . Miscellaneous . | . . . . . . . . . . . . . . . . . . . . . . . . . Route ------- -11/Scrapyard -10/Materials (discovered 2 exits: *Min x2) -10/Mines (discovered 3 exits: *Mat x2 / [*Sub]) -9/Materials (discovered 3 exits: *Mat x2 / [*Min]) -9/Mines (discovered 3 exits: *Mat x2 / *Exi) -9/Exiles (discovered 2 exits: [*Min x2]) -8/Mines -8/Materials -8/Storage -7/Factory -7/DSF -6/Factory -6/Extension (discovered 3 exits: *Fac x2 / *Cet) -6/Cetus (discovered 2 exits: *Fac / [*Arc]) -6/Archives (discovered 3 exits: *Fac / *Hub x2) -6/Hub_04(d) (discovered 5 exits: *Fac x4 / Gar) -6/Garrison (discovered 3 exits: *Fac x3) -5/Factory (discovered 2 exits: Upp x2) -5/Waste -5/Factory (discovered 4 exits: *Fac x2 / *Upp x2) -5/Upper Caves -5/Upper Caves (discovered 2 exits: *Fac / *War) -5/Warlord -4/Proximity Caves -4/Factory (discovered 4 exits: [*Res x2] / Upp x2) History --------- Turn | Location | Event 3 | -11/Scrapyard | Discovered new exit (range 3) 10 | -11/Scrapyard | Entered Materials 53 | -10/Materials | Identified exit to Mines 314 | -10/Materials | Build established: Mutant 330 | -10/Materials | Entered Mines 330 | -10/Mines | Accompanied by 1 ally 449 | -10/Mines | Core integrity fell below 50% 548 | -10/Mines | Discovered new exit (range 6) 641 | -10/Mines | Met a Derelict testing a Signal Generator 657 | -10/Mines | Found Signal Generator 735 | -10/Mines | Discovered new exit (range 3) 931 | -10/Mines | Found DCF Scrap (12 items) 977 | -10/Mines | Learned location of Storage (-8) 986 | -10/Mines | Learned Materials security intel 1094 | -10/Mines | Learned 4 Materials zone layouts 1110 | -10/Mines | Build established: Scavenger-Mutant 1148 | -10/Mines | Found the Drone Emporium 1156 | -10/Mines | Found Prototype Device 1172 | -10/Mines | Discovered new exit (range 15) 1197 | -10/Mines | Entered Materials 1197 | -9/Materials | Accompanied by 1 ally 1197 | -9/Materials | Evolved 2 slots: Utility x1, Weapon x1 1198 | -9/Materials | Identified exit to Materials 1198 | -9/Materials | Identified Decoy Drone Bay 1490 | -9/Materials | Lost 3 parts (1p2w) 1722 | -9/Materials | Discovered new exit (range 16) 2219 | -9/Materials | Build established: Scavenger-Tank 2449 | -9/Materials | Discovered exit to Materials (range 12) 2735 | -9/Materials | Entered Mines 2831 | -9/Mines | Discovered exit to Materials (range 36) 3022 | -9/Mines | Assembled infested the area 3050 | -9/Mines | Build established: Gunner 3109 | -9/Mines | Lost 3 allies 3205 | -9/Mines | Deemed a non-threat by the Exiles lab entrance 3205 | -9/Mines | Discovered new exit (range 5) 3326 | -9/Mines | Discovered exit to Materials (range 50) 3346 | -9/Mines | Received a Rocket Launcher from a helpful Derelict 3662 | -9/Mines | Assisted by bots powering up and referring to "LRC-V3" 3733 | -9/Mines | Joined a pair of Derelicts in attacking an 0b10 outpost 4187 | -9/Mines | Entered Exiles 4187 | -9/Exiles | Accompanied by 3 allies 4236 | -9/Exiles | Discovered new exit (range 15) 4275 | -9/Exiles | Met 8R-AWN 4320 | -9/Exiles | Met EX-HEX 4428 | -9/Exiles | Met EX-BIN 4473 | -9/Exiles | Aligned with FarCom system 4476 | -9/Exiles | Given EX-Vault access code 4550 | -9/Exiles | Opened EX-Vault 4578 | -9/Exiles | Found Chronowheel 4582 | -9/Exiles | Found Deploy-a-Sentry 4589 | -9/Exiles | Found Deploy-a-Sentry 4593 | -9/Exiles | Found Deploy-a-Sentry 4645 | -9/Exiles | Warned to stay clear of 0b10 Research branches 4716 | -9/Exiles | Met EX-DEC 4742 | -9/Exiles | Learned location of Zion (-6) 4989 | -9/Exiles | Build established: Tank 5556 | -9/Exiles | Attacked by the Exiles 5646 | -9/Exiles | Core integrity fell below 50% 5693 | -9/Exiles | Destroyed 8R-AWN 5704 | -9/Exiles | Found Prototype Ballistic Gun 5704 | -9/Exiles | Identified 8R-AWN's Boregun 5709 | -9/Exiles | Found 8R-AWN's Boregun 5967 | -9/Exiles | Destroyed EX-HEX 5968 | -9/Exiles | Build established: Scavenger-Tank 5993 | -9/Exiles | Allies destroyed EX-DEC 6013 | -9/Exiles | Destroyed EX-BIN 6148 | -9/Exiles | Found Deploy-a-Sentry 6533 | -9/Exiles | Found Prototype Processor 7156 | -9/Exiles | Discovered new exit (range 14) 7176 | -9/Exiles | Stole two prototypes: Chronowheel, Deploy-a-Sentry 7176 | -9/Exiles | Entered Mines 7176 | -8/Mines | Accompanied by 2 allies 7182 | -8/Mines | Core integrity fell below 20% 7227 | -8/Mines | Discovered exit to Materials (range 7) 7260 | -8/Mines | Entered Materials 7260 | -8/Materials | Evolved 2 slots: Propulsion x1, Utility x1 7284 | -8/Materials | Identified Exp. Targeting Computer 7546 | -8/Materials | Build established: Scavenger-Gunner 8008 | -8/Materials | Discovered new exit (range 9) 8135 | -8/Materials | Garrison activated, responded to threat 8199 | -8/Materials | Entered Storage 8412 | -8/Storage | Assisted by bots powering up and referring to "LRC-V3" 8589 | -8/Storage | Lost 8 allies 8854 | -8/Storage | DAS Turret deployed 8885 | -8/Storage | Discovered new exit (range 21) 9087 | -8/Storage | Identified exit to Factory 9147 | -8/Storage | Build established: Scavenger-Skirmisher 9256 | -8/Storage | Entered Factory 9256 | -7/Factory | Evolved 2 slots: Propulsion x1, Utility x1 9275 | -7/Factory | Identified exit to DSF 9278 | -7/Factory | Entered DSF 9318 | -7/DSF | Additional patrols routed to DSF 9405 | -7/DSF | DAS Turret deployed 9437 | -7/DSF | Sterilization system engaged 9457 | -7/DSF | Ambient heat levels rising (+10) 9470 | -7/DSF | Discovered new exit (range 14) 9472 | -7/DSF | Ambient heat levels rising (+10) 9487 | -7/DSF | Ambient heat levels rising (+10) 9501 | -7/DSF | Entered Factory 9501 | -6/Factory | Evolved 2 slots: Utility x1, Weapon x1 9562 | -6/Factory | Build established: Scavenger-Tank 10378 | -6/Factory | Discovered new exit (range 8) 10395 | -6/Factory | Entered Extension 10552 | -6/Extension | Destroyed 7 combat bots 10706 | -6/Extension | Rescued a captive Derelict 10707 | -6/Extension | Rescued a captive Derelict 11221 | -6/Extension | Energy Cycler disabled 11221 | -6/Extension | Rescued a captive Derelict 11224 | -6/Extension | Rescued A7 11226 | -6/Extension | Rescued a captive Derelict 11852 | -6/Extension | Spotted B-75 Beast 11869 | -6/Extension | Destroyed B-75 Beast 11900 | -6/Extension | Spotted B-75 Beast 11906 | -6/Extension | Discovered new exit (range 15) 11922 | -6/Extension | Destroyed B-75 Beast 11924 | -6/Extension | Lost 9 allies 12635 | -6/Extension | Discovered new exit (range 10) 12637 | -6/Extension | Discovered new exit (range 6) 12679 | -6/Extension | Entered Cetus 12679 | -6/Cetus | Accompanied by 8 allies (A7) 12684 | -6/Cetus | Acquired a Cetus Manufacturing Module code from A7 12716 | -6/Cetus | Spotted Cetus Guard 12717 | -6/Cetus | Spotted Cetus Guard 12721 | -6/Cetus | Spotted Cetus Guard 12724 | -6/Cetus | Allies destroyed Cetus Guard 12724 | -6/Cetus | Spotted Cetus Guard 12729 | -6/Cetus | Destroyed Cetus Guard 12737 | -6/Cetus | Extracted ID and sensor layout for unrecognized location from A7's data core 12740 | -6/Cetus | Allies destroyed Cetus Guard 12742 | -6/Cetus | Allies destroyed Cetus Guard 12764 | -6/Cetus | Lost 4 allies 12890 | -6/Cetus | Started Cetus Manufacturing Module 12915 | -6/Cetus | Manufactured an Enhanced Grunt 12940 | -6/Cetus | Manufactured an Enhanced Grunt 12965 | -6/Cetus | Manufactured an Enhanced Grunt 12990 | -6/Cetus | Manufactured an Enhanced Grunt 12999 | -6/Cetus | Discovered new exit (range 15) 13015 | -6/Cetus | Manufactured an Enhanced Grunt 13047 | -6/Cetus | Spotted Cetus Guard 13048 | -6/Cetus | Spotted Cetus Guard 13051 | -6/Cetus | Spotted Cetus Guard 13057 | -6/Cetus | Destroyed Cetus Guard 13058 | -6/Cetus | Allies destroyed Cetus Guard 13061 | -6/Cetus | Spotted Cetus Guard 13063 | -6/Cetus | Allies destroyed Cetus Guard 13066 | -6/Cetus | Destroyed Cetus Guard 13076 | -6/Cetus | Discovered new exit (range 16) 13084 | -6/Cetus | Met Revision 17 13088 | -6/Cetus | Lost 3 allies 13240 | -6/Cetus | Entered Archives 13240 | -6/Archives | Accompanied by 6 allies 13291 | -6/Archives | Discovered new exit (range 16) 13442 | -6/Archives | Discovered new exit (range 15) 13483 | -6/Archives | Discovered new exit (range 15) 13654 | -6/Archives | Entered Hub_04(d) 13654 | -6/Hub_04(d) | Accompanied by 4 allies 13763 | -6/Hub_04(d) | Spotted B-75 Beast 13795 | -6/Hub_04(d) | Destroyed B-75 Beast 14097 | -6/Hub_04(d) | Network Hub disabled 14179 | -6/Hub_04(d) | Discovered new exit (range 10) 14289 | -6/Hub_04(d) | Network Hub disabled 14368 | -6/Hub_04(d) | Identified exit to Garrison 14545 | -6/Hub_04(d) | Identified exit to Factory 14691 | -6/Hub_04(d) | Spotted Lightning 14694 | -6/Hub_04(d) | Spotted Lightning 14696 | -6/Hub_04(d) | Spotted Lightning 14702 | -6/Hub_04(d) | Destroyed Lightning 14710 | -6/Hub_04(d) | Destroyed Lightning 14724 | -6/Hub_04(d) | Destroyed Lightning 14763 | -6/Hub_04(d) | Found Prototype Device 14763 | -6/Hub_04(d) | Identified Exp. Phase Shifter 14766 | -6/Hub_04(d) | Found Prototype Device 14766 | -6/Hub_04(d) | Identified Exp. EM Shield 14776 | -6/Hub_04(d) | Found Exp. Targeting Computer 14792 | -6/Hub_04(d) | Found Prototype Energy Cannon 14792 | -6/Hub_04(d) | Identified EMDS 14801 | -6/Hub_04(d) | Found Exp. Phase Shifter 14809 | -6/Hub_04(d) | Found Exp. Phase Shifter 14934 | -6/Hub_04(d) | Entered Garrison 14972 | -6/Garrison | Triggered checkpoint 15083 | -6/Garrison | Garrison Relay disabled 15174 | -6/Garrison | Triggered checkpoint 15264 | -6/Garrison | Triggered checkpoint 15336 | -6/Garrison | Garrison Relay disabled 15450 | -6/Garrison | Discovered exit to Factory (range 14) 15690 | -6/Garrison | Spotted B-75 Beast 15693 | -6/Garrison | DAS Turret deployed 15700 | -6/Garrison | DAS Turret deployed 15719 | -6/Garrison | Allies destroyed B-75 Beast 15853 | -6/Garrison | Triggered checkpoint 15930 | -6/Garrison | Triggered checkpoint 15963 | -6/Garrison | Garrison Relay disabled 16017 | -6/Garrison | Discovered exit to Factory (range 14) 16022 | -6/Garrison | Triggered checkpoint 16198 | -6/Garrison | Triggered checkpoint 16222 | -6/Garrison | Triggered checkpoint 16277 | -6/Garrison | Discovered exit to Factory (range 11) 16318 | -6/Garrison | Triggered checkpoint 16367 | -6/Garrison | Garrison Relay disabled 16493 | -6/Garrison | Attempted to access garrison exit controls, blocked by remote lockdown 16626 | -6/Garrison | Entered Factory 16626 | -5/Factory | Evolved 2 slots: Power x1, Weapon x1 16708 | -5/Factory | Identified exit to Upper Caves 16734 | -5/Factory | Fabricated G-50 Soldier (x3) 16926 | -5/Factory | First assault squad dispatched 17211 | -5/Factory | Sucked down chute 17211 | -5/Factory | Entered Waste 17226 | -5/Waste | EMP discharged 17226 | -5/Waste | Spotted C-40 Crusher 17240 | -5/Waste | Spotted C-40 Crusher 17260 | -5/Waste | Destroyed C-40 Crusher 17283 | -5/Waste | Spotted C-40 Crusher 17288 | -5/Waste | Spotted C-40 Crusher 17288 | -5/Waste | Destroyed C-40 Crusher 17289 | -5/Waste | Spotted C-40 Crusher 17303 | -5/Waste | Destroyed C-40 Crusher 17310 | -5/Waste | Destroyed C-40 Crusher 17326 | -5/Waste | EMP discharged 17326 | -5/Waste | System corruption reached 10% 17331 | -5/Waste | Spotted C-40 Crusher 17331 | -5/Waste | Destroyed C-40 Crusher 17400 | -5/Waste | Discovered new exit (range 13) 17420 | -5/Waste | Entered Factory 17888 | -5/Factory | Destroyed 7 combat bots 18102 | -5/Factory | Lost 3 parts (1u2w) 18138 | -5/Factory | Discovered new exit (range 14) 18374 | -5/Factory | Lost 4 parts (2u2w) 18753 | -5/Factory | Repaired Broken Hvy. Treads+ 18920 | -5/Factory | First assault squad dispatched 20168 | -5/Factory | Discovered new exit (range 12) 20585 | -5/Factory | Lost 11 parts (1p2n3u5w) 20593 | -5/Factory | Entered Upper Caves 20594 | -5/Upper Caves | Core integrity fell below 50% 20631 | -5/Upper Caves | Met a Warlord Commander 20632 | -5/Upper Caves | Learned location of Warlord (-5) 20633 | -5/Upper Caves | Warlord Commander delivered Encrypted Comm Array 20798 | -5/Upper Caves | Build established: Scavenger-Mutant 20889 | -5/Upper Caves | System corruption reached 30% 20939 | -5/Upper Caves | Learned Factory stockpile data 21171 | -5/Upper Caves | Build established: Mutant 21215 | -5/Upper Caves | Discovered new exit (range 11) 21220 | -5/Upper Caves | Entered another Upper Caves area 21222 | -5/Upper Caves | Encountered a Master Thief 21222 | -5/Upper Caves | Encountered a Master Thief 21223 | -5/Upper Caves | Antigrav System stolen by Master Thief 21230 | -5/Upper Caves | Arm. Medium Treads stolen by Master Thief 21243 | -5/Upper Caves | Learned Factory stockpile data 21243 | -5/Upper Caves | Discovered new exit (range 8) 21546 | -5/Upper Caves | Discovered new exit (range 7) 21549 | -5/Upper Caves | Entered Warlord 21572 | -5/Warlord | System corruption cleaned by Quarantine Array 22041 | -5/Warlord | Warlord's base attacked by MAIN.C 22087 | -5/Warlord | Build established: Commander-Mutant 22128 | -5/Warlord | Found Prototype Energy Cannon 22128 | -5/Warlord | Identified Vortex Driver 22131 | -5/Warlord | Found Prototype Energy Gun 22131 | -5/Warlord | Identified Vortex Shotgun 22218 | -5/Warlord | Found Prototype Processor 22218 | -5/Warlord | Identified Exp. Target Analyzer 22220 | -5/Warlord | Found Prototype Device 22220 | -5/Warlord | Identified Thermal Barrier 22230 | -5/Warlord | Found Prototype Reactor 22230 | -5/Warlord | Identified Vortex Chain Reactor 22234 | -5/Warlord | Found Exp. Phase Shifter 22354 | -5/Warlord | Found Prototype Energy Gun 22354 | -5/Warlord | Identified Plasma Storm 22391 | -5/Warlord | Warlord forces counterattacked 22403 | -5/Warlord | Spotted B-75 Beast 22414 | -5/Warlord | Spotted B-86 Titan 22471 | -5/Warlord | Destroyed 12 combat bots 22471 | -5/Warlord | Spotted Striker 22490 | -5/Warlord | Spotted Striker 22522 | -5/Warlord | Spotted Executioner 22542 | -5/Warlord | P-80 Master assimilated allied DB-Q2D(g) 22543 | -5/Warlord | Spotted DB-Q2D(g) 22545 | -5/Warlord | Lost 4 allies 22551 | -5/Warlord | Spotted Executioner 22553 | -5/Warlord | P-80 Master assimilated allied 4Z-KWK(M) 22553 | -5/Warlord | Found Prototype Processor 22553 | -5/Warlord | Identified Exp. Core Analyzer 22567 | -5/Warlord | P-70 Sage assimilated allied IC-YWQ(g) 22568 | -5/Warlord | P-70 Sage assimilated allied 71-ZMM(g) 22574 | -5/Warlord | Discovered new exit (range 16) 22598 | -5/Warlord | Entered Proximity Caves 22598 | -4/Proximity Caves | Accompanied by 2 allies 22600 | -4/Proximity Caves | Spotter reported a threat 22601 | -4/Proximity Caves | Spotter reported a threat 22617 | -4/Proximity Caves | Lost 16 allies 22635 | -4/Proximity Caves | Learned Research emergency access door positions 22826 | -4/Proximity Caves | Build established: Scavenger-Tank 22901 | -4/Proximity Caves | Spotter reported a threat 22969 | -4/Proximity Caves | Spotted B-86 Titan 22972 | -4/Proximity Caves | Core integrity fell below 20% 22975 | -4/Proximity Caves | Destroyed B-86 Titan 23096 | -4/Proximity Caves | Spotter reported a threat 23149 | -4/Proximity Caves | Spotter reported a threat 23153 | -4/Proximity Caves | Discovered new exit (range 21) 23191 | -4/Proximity Caves | Entered Factory 23191 | -4/Factory | Evolved 2 slots: Propulsion x1, Utility x1 23192 | -4/Factory | Identified exit to Upper Caves 23337 | -4/Factory | Spotted B-86 Titan 23441 | -4/Factory | Search patrols dispatched 23497 | -4/Factory | Garrison activated, responded to threat 23549 | -4/Factory | Discovered new exit (range 10) 23691 | -4/Factory | Search patrols dispatched 23817 | -4/Factory | Found Quantum Capacitor 23903 | -4/Factory | Spotted B-86 Titan 23954 | -4/Factory | Destroyed B-86 Titan 24406 | -4/Factory | Garrison activated, responded to threat 24441 | -4/Factory | First assault squad dispatched 24491 | -4/Factory | Discovered new exit (range 13) 24498 | -4/Factory | Destroyed 13 combat bots 24546 | -4/Factory | Destroyed 8 combat bots 24641 | -4/Factory | Destroyed 9 combat bots 24698 | -4/Factory | Self-destructed Last Messages --------------- 24691_ K-01 Serf cleans the Fusion Modulator. 24691_ Penetrated by Slug. 24691_ Critical hit (Destroy). 24691_ Hvy. Treads+ destroyed. 24691_ Slug penetrates Wall. 24692_ U-05 Engineer lays Concrete. 24694_ Activated siege mode. 24694_ U-05 Engineer lays Concrete. 24695_ Penetrated by Slug. 24695_ Adv. Heat Sink melted. 24695_ G-67 Veteran destroyed. 24695_ K-01 Serf destroyed. 24695_ K-01 Serf cleans the Fusion Modulator. 24696_ U-05 Engineer lays Concrete. 24697_ Vortex Chain Reactor destroyed. 24697_ Critical hit (Burn: +37). 24698_ U-05 Engineer lays Concrete. 24698_ Penetrated by Slug. 24698_ Slug penetrates Wall. 24698_ Plasma Storm destroyed. Map ----- +----------------------------------------------------+ | ## #?????????????????????????????????????????? | | """ ## #?????????????????????????????????????????? | | """ ## #?????????????????????????????????????????? | | """ ##%################?##???????????????????????? | | """ ## #?# ##############?????????? | | ## = #?# "! #?????????? | | ## *#####= #?????????? | | ###### *!%[=%=! #?????????? | | ############## ###!!| #?????##### | | ###### #????????????# ## " [ #???? # | | #????# #????????????# #???# #???]]= # | | ######+#????????????#+#???# #???]%= # | | #??????????? #???# #?? ]== # | | """ #?????????""" #???# #? # | | """ #??????? """" #???# # ! # | | """ #?????"" """" #???# # # | | #????""" """" #???# # | | """ #???? #???###########+# ##;##### | | """ #????""" """" #???# == [= #? | | """ #??????" """" #???# %==!= #? | | #??????" """" #???# ![[%[%! #? | | ! #????????"""" #??## ! ! #? | | ? #????????? #?##" [%[ * % #? | | ? #????????? #?# # % = #? | | #+?#####?????###;######### !%= ! % | | ??? *%! @[ ih [%* < * | | ??? wg [ h | | ???? g = % | | ???? g | | ????g % [ | | ?????####### #!##### ### k #### | | ??????????# ? ???? #??# ! #??? | | ??????????#? ????? ??? u %= "#?? | | ??????????# ?????? ?? k # #? | | ?????????????????"" ??" ###? | | ????????????????""" ?#### #??? | | ?????????????????"" ?????# #??? | | ???????????????? ?????#########/##### #??? | | ????????????????"""k ????????????? ???? #??? | | ????????????????""" ?????????????? ! ??? #??? | | ????????????????""" ??????????????? ???###????? | | ????????????????? ???????????????? ?????????? | | ????????????????? ???????????????? ?]?????????? | | ?????????????????#????????????????? ??]??????????? | | ?????????????????????????????????????????????????? | | ?????????????????????????????????????????????????? | | ?????????????????????????????????????????????????? | | ?????????????????????????????????????????????????? | | ?????????????????????????????????????????????!???? | | ?????????????????????????????????????????????????? | +----------------------------------------------------+ Best States ------------- Heat Dissipation 100 Energy Generation 55 Energy Capacity 700 Matter Stores 300 Matter Capacity 300 Sight Range 23 Robot Scan Range 18 Terrain Scan Range 20 Terrain Scan Density 210 ECM Strength 2 Jamming Range 14 Cloak Strength 2 Additional Mass Support 12 Armor Coverage 900 Resistance: TH 50 Resistance: EM 75 Core Shielding 20 Weapon Cycling 25 Phase Shifting 20 Evasion (%) 75 Targeting Accuracy 24 Target Analysis 10 Core Analysis 8 Recoil Reduction 5 Kinecelleration 40 Salvage Targeting 4 Offensive Hacking 22 Defensive Hacking 12 Authchip Count 1 Item Schematics ----------------- None Robot Schematics ------------------ None Fabricated ------------ G-50 Soldier | x3 | -5/Factory | Preloaded Repaired ---------- Hvy. Treads | 13% | -5/Factory | Broken Studied --------- Coil Gun | -5/Factory | Hacked Gauss Rifle | -5/Factory | Hacked Hvy. Machine Gun | -5/Factory | Hacked Rocket Launcher | -5/Factory | Hacked Hvy. Treads | -5/Factory | Hacked Alien Tech Used ----------------- None Achievements -------------- Consequences Hot Goods Who Guards The Bodyguard? Window Shopping Challenges ------------ None Game ------ Seed ShieldPoweredCorpse Manual? 1 Play Time 03:19:22 Cumulative 392.8 hours Start 2025.11.13 @ 13:27:06 End 2025.11.14 @ 17:55:17 Sessions 3 Manual Loads 0 Difficulty Rogue Special Mode None Game No. 126 Rogue 126 Adventurer 0 Explorer 0 Win Type - Total 10 Types 3/0/5/0/0/0/1/0/0/1 Lore% 78 Gallery% 86 Achievement% 70 Wizard Run 0 Options --------- Layout 1 ASCII 0 Keyboard 1 Movement Arrows Keybinds 0 Fullscreen 1 Font 24/Smallcaps Map View 50x35 Zoom Use 0% Tactical HUD 1 Map Filters NONE Filters NONE Steam 1 RUN: 0a5ea466-d971-4a9c-abea-bc416962eb50